bitfinex/quotes_BTCUSD_20250508
["timestamp","ask_amount","ask_price","bid_price","bid_amount"]
[1746700208241,0.01001171,99883.0,99882.0,0.00934352]
[1746700208449,0.00992166,99883.0,99882.0,0.00934352]
[1746700208899,0.00992166,99883.0,99882.0,0.01034352]
[1746700210139,0.00992166,99883.0,99882.0,0.01234352]
[1746700211377,0.04082166,99883.0,99882.0,0.01234352]
[1746700212559,0.02582166,99883.0,99882.0,0.01234352]
[1746700212783,0.12648858,99883.0,99882.0,0.01234352]
[1746700213160,0.00992166,99883.0,99882.0,0.01234352]
[1746700215858,0.00992166,99883.0,99882.0,0.03103061]
[1746700218114,0.00992166,99883.0,99882.0,0.07810143]
[1746700220078,0.00992166,99883.0,99882.0,0.03103061]
[1746700220901,0.02632166,99883.0,99882.0,0.02168709]
[1746700221101,0.02632166,99883.0,99882.0,0.003]
[1746700221740,0.00992166,99883.0,99882.0,0.003]
[1746700221951,0.21525178,99883.0,99882.0,0.003]
[1746700222166,0.21274888,99883.0,99882.0,0.003]
[1746700224902,0.14198858,99883.0,99882.0,0.003]
[1746700225053,0.14449171,99883.0,99882.0,0.003]
[1746700226305,0.14449171,99883.0,99882.0,0.02169027]
[1746700226776,0.14449166,99883.0,99882.0,0.02169027]
[1746700227014,0.14449166,99883.0,99882.0,0.003]
[1746700227239,0.24515858,99883.0,99882.0,0.003]
[1746700227449,0.2426555,99883.0,99882.0,0.002]
[1746700227669,0.20023627,99882.0,99880.0,0.04709777]
[1746700227897,0.13417041,99881.0,99880.0,0.04709777]
[1746700228124,0.23483733,99881.0,99880.0,0.04709777]
[1746700228342,0.23233384,99881.0,99880.0,0.04709777]
[1746700229602,0.23233384,99881.0,99880.0,0.05709777]
[1746700230655,0.23233384,99881.0,99880.0,0.01]
[1746700233332,0.25108519,99881.0,99880.0,0.01]
[1746700233993,0.15041827,99881.0,99880.0,0.01]
[1746700234193,0.15292178,99881.0,99880.0,0.01]
[1746700234394,0.13417043,99881.0,99880.0,0.01]
[1746700243951,0.10317043,99881.0,99880.0,0.01]
[1746700246144,0.10066692,99881.0,99880.0,0.01]
[1746700246343,0.10066692,99881.0,99880.0,0.0253]
[1746700246600,0.10066692,99881.0,99880.0,0.0406]
[1746700246906,0.10066692,99881.0,99880.0,0.0253]
[1746700247303,0.10066692,99881.0,99880.0,0.0406]
[1746700247672,0.10066692,99881.0,99880.0,0.0253]
[1746700248306,0.10066692,99881.0,99880.0,0.0406]
[1746700249722,0.10066692,99881.0,99880.0,0.0253]
[1746700250190,0.10057567,99881.0,99880.0,0.0253]
[1746700250315,0.10057567,99881.0,99880.0,0.0411]
[1746700250871,0.10057567,99881.0,99880.0,0.0253]
[1746700251864,0.10057567,99881.0,99880.0,0.01]
[1746700252463,0.10057567,99881.0,99880.0,0.0257]
[1746700253565,0.20023677,99882.0,99881.0,0.0158]
[1746700253737,0.20023677,99882.0,99881.0,0.0322]
[1746700254519,0.20023677,99882.0,99881.0,0.05086514]
[1746700255241,0.20023677,99882.0,99881.0,0.05586514]
[1746700255401,0.20023677,99882.0,99881.0,0.05986514]
[1746700256177,0.20023677,99882.0,99881.0,0.05086514]
[1746700256507,0.20023677,99882.0,99881.0,0.06186514]
[1746700256830,0.20023677,99882.0,99881.0,0.05086514]
[1746700258074,0.20023677,99882.0,99881.0,0.05686514]
[1746700258253,0.20023677,99882.0,99881.0,0.06186514]
[1746700258461,0.20023677,99882.0,99881.0,0.05086514]
[1746700258892,0.20123677,99882.0,99881.0,0.05086514]
[1746700259696,0.20123677,99882.0,99881.0,0.03446514]
[1746700262192,0.20123677,99882.0,99881.0,0.01866514]
[1746700264029,0.20123677,99882.0,99881.0,0.03466514]
[1746700264203,0.001,99882.0,99881.0,0.05006514]
[1746700264968,0.001,99882.0,99881.0,0.05939625]
[1746700265424,0.20123627,99882.0,99881.0,0.05939625]
[1746700265624,0.001,99882.0,99881.0,0.05939625]
[1746700265823,0.001,99882.0,99881.0,0.25963453]
[1746700266048,0.20023507,99883.0,99881.0,0.02799625]
[1746700266253,0.20023507,99883.0,99882.0,0.0159]
[1746700266390,0.20023507,99883.0,99882.0,0.01866514]
[1746700266788,0.20023507,99883.0,99878.0,0.01866514]
[1746700267001,0.20024229,99879.0,99878.0,0.04986514]
[1746700267485,0.21025203,99881.0,99877.0,0.0321]
[1746700267616,0.01001211,99879.0,99878.0,0.0321]
[1746700268859,0.01101211,99879.0,99878.0,0.0321]
[1746700271548,0.001,99879.0,99878.0,0.0321]
[1746700271908,0.001,99879.0,99878.0,0.05076504]
[1746700272991,0.001,99879.0,99878.0,0.0321]
[1746700273198,0.001,99879.0,99878.0,0.05076847]
[1746700275055,0.20124229,99879.0,99878.0,0.01866847]
[1746700275691,0.20124229,99879.0,99878.0,0.0280091]
[1746700276500,0.21654229,99879.0,99878.0,0.0280091]
[1746700276708,0.20025833,99871.0,99870.0,0.0280091]
[1746700276941,0.20025833,99871.0,99860.0,0.14200949]
[1746700277090,0.20026992,99866.0,99862.0,0.21028934]
[1746700277328,0.20026992,99866.0,99863.0,1.38673985]
[1746700277623,0.01001331,99867.0,99864.0,0.976972]
[1746700277823,0.20026937,99866.0,99864.0,0.875767]
[1746700277983,0.19326937,99866.0,99864.0,0.292592]
[1746700278187,0.21028471,99865.0,99862.0,1.43390281]
[1746700278468,0.21028471,99865.0,99863.0,1.053128]
[1746700278655,0.21028471,99865.0,99863.0,1.068728]
[1746700278860,0.21028471,99865.0,99864.0,0.939897]
[1746700279297,0.21028471,99865.0,99864.0,0.876767]
[1746700279424,0.21028471,99865.0,99864.0,0.875767]
[1746700280399,0.21028471,99865.0,99863.0,1.053128]
[1746700280551,0.20027437,99863.0,99862.0,0.002]
[1746700280720,0.33264129,99863.0,99862.0,0.002]
[1746700280928,0.2002844,99858.0,99857.0,4.566e-05]
[1746700282791,0.20278797,99858.0,99857.0,4.566e-05]
[1746700283197,0.27965607,99858.0,99857.0,0.00104566]
[1746700283533,0.39281942,99858.0,99857.0,0.00104566]
[1746700284262,0.39281942,99858.0,99857.0,4.566e-05]
[1746700284458,0.39281942,99858.0,99857.0,0.00504566]
[1746700284656,0.39281942,99858.0,99857.0,0.00904566]
[1746700285732,0.33225132,99858.0,99857.0,0.00904566]
[1746700285933,0.30095132,99858.0,99857.0,0.00904566]
[1746700286180,0.2002844,99858.0,99857.0,0.00904566]
[1746700286871,0.21028259,99866.0,99861.0,0.01001391]
[1746700287066,0.20027532,99863.0,99860.0,0.20027951]
[1746700287277,0.21028903,99863.0,99859.0,0.21029611]
[1746700287478,0.21028903,99863.0,99860.0,0.2002791]
[1746700287905,0.20027684,99862.0,99859.0,0.22629585]
[1746700288038,0.21028934,99863.0,99860.0,0.20028013]
[1746700288247,0.01001371,99863.0,99860.0,0.20028013]
[1746700288460,0.21028925,99863.0,99860.0,0.21029414]
[1746700288646,0.21028825,99863.0,99860.0,0.01001401]
[1746700288850,0.21028839,99863.0,99860.0,0.01001401]
[1746700289055,0.20027073,99865.0,99861.0,0.01001391]
[1746700289280,0.01001361,99864.0,99861.0,0.01001391]
[1746700289622,0.21028424,99865.0,99861.0,0.01001391]
[1746700289729,0.21028424,99865.0,99861.0,0.2102916]
[1746700289949,0.21028424,99865.0,99861.0,0.01001391]
[1746700290146,0.01001361,99864.0,99859.0,0.01001411]
[1746700290405,0.01001371,99863.0,99859.0,0.21029476]
[1746700290610,0.21028853,99863.0,99860.0,0.20027955]
[1746700290973,0.01001371,99863.0,99861.0,0.20027806]
[1746700291174,0.01001391,99861.0,99857.0,4.566e-05]
[1746700291386,0.01868684,99860.0,99858.0,0.20028407]
[1746700291567,0.20028257,99859.0,99857.0,4.566e-05]
[1746700292997,0.01001401,99860.0,99857.0,4.566e-05]
[1746700293242,0.21029019,99862.0,99857.0,0.01005998]
[1746700293542,0.21028828,99863.0,99859.0,0.20028116]
[1746700293729,0.01001371,99863.0,99860.0,0.20028001]
[1746700293939,0.01001371,99863.0,99859.0,0.20028239]
[1746700294149,0.21028926,99863.0,99859.0,0.20028239]
[1746700294378,0.21029027,99862.0,99859.0,0.20028239]
[1746700294590,0.21029291,99861.0,99857.0,0.21034553]
[1746700294728,0.01001391,99861.0,99857.0,0.21034553]
[1746700295532,0.20028039,99860.0,99857.0,0.21034553]
[1746700296571,0.2002826,99859.0,99857.0,0.01005998]
[1746700296964,0.2102944,99860.0,99857.0,0.21034606]
[1746700297229,0.01001391,99861.0,99857.0,0.01005998]
[1746700297432,0.01001401,99860.0,99857.0,0.01005998]
[1746700297634,0.2002844,99858.0,99857.0,4.566e-05]
[1746700297979,0.20028239,99859.0,99857.0,4.566e-05]
[1746700298978,0.2002844,99858.0,99857.0,4.566e-05]
[1746700299168,0.03414681,99860.0,99857.0,4.566e-05]
[1746700299169,0.20028246,99859.0,99857.0,4.566e-05]
[1746700299303,0.21029836,99860.0,99857.0,4.566e-05]
[1746700299501,0.2002844,99858.0,99857.0,4.566e-05]
[1746700301602,0.01001401,99860.0,99857.0,4.566e-05]
[1746700301816,0.2002844,99858.0,99857.0,4.566e-05]
[1746700304247,0.23106669,99858.0,99857.0,4.566e-05]
[1746700304559,0.2606632,99858.0,99857.0,4.566e-05]
[1746700305334,0.2441632,99858.0,99857.0,4.566e-05]
[1746700305744,0.2158844,99858.0,99857.0,4.566e-05]
[1746700306154,0.2002844,99858.0,99857.0,4.566e-05]
[1746700306357,0.20278803,99858.0,99857.0,4.566e-05]
[1746700312254,0.00250363,99858.0,99857.0,4.566e-05]
[1746700312412,0.20028274,99859.0,99857.0,4.566e-05]
[1746700312758,0.20028274,99859.0,99858.0,0.01868212]
[1746700313737,0.20028274,99859.0,99858.0,0.02802506]
[1746700314139,0.20278637,99859.0,99858.0,0.02802506]
[1746700314564,0.20028274,99859.0,99858.0,0.02802506]
[1746700314765,0.20028274,99859.0,99858.0,0.00934294]
[1746700315837,0.20028274,99859.0,99857.0,4.566e-05]
[1746700316039,0.20028274,99859.0,99854.0,0.2047407]
[1746700316040,0.21029685,99859.0,99854.0,0.2047407]
[1746700316240,0.21035167,99859.0,99854.0,0.2047407]
[1746700316444,0.21035167,99859.0,99856.0,0.20028802]
[1746700316646,0.20028512,99858.0,99855.0,0.21030494]
[1746700316851,0.21029934,99858.0,99855.0,0.21030494]
[1746700318140,0.20028685,99857.0,99855.0,0.21030494]
[1746700318335,0.20028685,99857.0,99855.0,0.01001452]
[1746700318643,0.01006893,99859.0,99856.0,0.20028841]
[1746700318850,0.21035242,99859.0,99855.0,0.01001452]
[1746700319018,0.20028512,99858.0,99855.0,0.01001452]
[1746700319221,0.20028512,99858.0,99855.0,0.21030493]
[1746700319735,0.21029934,99858.0,99855.0,0.21030493]
[1746700320147,5.482e-05,99859.0,99858.0,0.2002844]
[1746700320326,5.482e-05,99859.0,99858.0,0.2328844]
[1746700321519,5.482e-05,99859.0,99858.0,0.2338844]
[1746700321748,5.482e-05,99859.0,99858.0,0.2328844]
[1746700321917,5.482e-05,99859.0,99858.0,7.7740004]
[1746700325049,5.482e-05,99859.0,99858.0,1.1858424]
[1746700325241,5.482e-05,99859.0,99858.0,1.4167424]
[1746700325424,5.482e-05,99859.0,99858.0,1.4332424]
[1746700325776,5.482e-05,99859.0,99858.0,1.4491424]
[1746700326174,5.482e-05,99859.0,99858.0,1.7891424]
[1746700327428,5.482e-05,99859.0,99858.0,0.5726844]
[1746700327658,5.482e-05,99859.0,99858.0,4.7252244]
[1746700327999,5.482e-05,99859.0,99858.0,4.1612244]
[1746700329080,0.00105482,99859.0,99858.0,4.1612244]
[1746700330367,0.00105482,99859.0,99858.0,4.1765244]
[1746700330746,0.00105482,99859.0,99858.0,4.1612244]
[1746700330909,0.00105482,99859.0,99858.0,4.1447244]
[1746700331113,0.00105482,99859.0,99858.0,3.9952244]
[1746700331314,0.00105482,99859.0,99858.0,4.0118244]
[1746700333206,0.00078945,99859.0,99858.0,4.0118244]
[1746700333847,0.00078945,99859.0,99858.0,2.4096094]
[1746700334439,0.00078945,99859.0,99858.0,2.4247094]
[1746700334841,0.00078945,99859.0,99858.0,2.4096094]
[1746700338299,0.00078945,99859.0,99858.0,2.4403094]
[1746700339245,0.00078945,99859.0,99858.0,2.4252094]
[1746700340863,0.00078945,99859.0,99858.0,2.4408094]
[1746700344459,0.00078945,99859.0,99858.0,0.2314844]
[1746700344831,0.00078945,99859.0,99858.0,10.2814844]
[1746700345399,0.20025439,99873.0,99871.0,0.01001291]
[1746700346660,6.399e-05,99875.0,99872.0,0.21026818]
[1746700346956,0.20031459,99875.0,99872.0,0.01001281]
[1746700347164,0.21032702,99875.0,99873.0,0.20025432]
[1746700347356,0.21032726,99875.0,99872.0,0.21026907]
[1746700347499,0.20025231,99874.0,99871.0,0.2102712]
[1746700347726,0.20025445,99873.0,99871.0,0.01001291]
[1746700348176,0.20025687,99872.0,99869.0,0.21027169]
[1746700348384,0.2102674,99873.0,99870.0,0.20026006]
[1746700348628,0.2102674,99873.0,99871.0,0.002]
[1746700349033,0.20025693,99872.0,99871.0,0.002]
[1746700349230,0.21026974,99872.0,99869.0,0.21027442]
[1746700349389,6.399e-05,99875.0,99873.0,0.20025432]
[1746700350362,6.399e-05,99875.0,99874.0,0.20025231]
[1746700351303,6.399e-05,99875.0,99873.0,0.20025432]
[1746700351731,6.399e-05,99875.0,99874.0,0.20025231]
[1746700351932,6.399e-05,99875.0,99873.0,0.20025397]
[1746700352164,6.399e-05,99875.0,99873.0,0.20125397]
[1746700352476,6.399e-05,99875.0,99873.0,0.20125399]
[1746700352688,6.399e-05,99875.0,99874.0,0.20025231]
[1746700354507,6.399e-05,99875.0,99873.0,0.20025399]
[1746700354708,0.20031569,99875.0,99872.0,0.21026534]
[1746700355241,0.2103282,99875.0,99872.0,0.21026534]
[1746700355750,0.21032708,99875.0,99872.0,0.21026534]
[1746700356392,0.20025273,99874.0,99872.0,0.01001281]
[1746700356606,0.21032708,99875.0,99872.0,0.01001281]
[1746700356841,6.399e-05,99875.0,99872.0,0.210268]
[1746700357056,6.399e-05,99875.0,99874.0,0.20025231]
[1746700360777,6.399e-05,99875.0,99873.0,0.20025242]
[1746700361329,6.399e-05,99875.0,99872.0,0.01001281]
[1746700362378,0.20031433,99875.0,99873.0,0.20025242]
[1746700363125,0.20031433,99875.0,99872.0,0.01001281]
[1746700364128,0.20031433,99875.0,99872.0,0.2102681]
[1746700365685,6.399e-05,99875.0,99874.0,0.20025231]
[1746700366237,6.399e-05,99875.0,99873.0,0.20025372]
[1746700366841,0.00106399,99875.0,99873.0,0.20025372]
[1746700367258,0.00106399,99875.0,99874.0,0.20025231]
[1746700367697,0.00106399,99875.0,99873.0,0.20025372]
[1746700368057,0.00106399,99875.0,99874.0,0.20025231]
[1746700369402,0.00106399,99875.0,99872.0,0.01001281]
[1746700369591,0.00106399,99875.0,99874.0,0.20025231]
[1746700369789,0.00106399,99875.0,99873.0,0.20025432]
[1746700371097,0.00106399,99875.0,99873.0,0.20025432]
[1746700372560,0.0110765,99875.0,99872.0,0.01001281]
[1746700373666,0.00106399,99875.0,99873.0,0.20025366]
[1746700375021,0.00106399,99875.0,99872.0,0.21026721]
[1746700375574,0.20131483,99875.0,99872.0,0.21026721]
[1746700375756,0.21132734,99875.0,99872.0,0.21026721]
[1746700377106,0.00106399,99875.0,99874.0,0.20025231]
[1746700377325,0.00106399,99875.0,99873.0,0.21635432]
[1746700378118,0.00106399,99875.0,99874.0,0.20025231]
[1746700378310,0.00106399,99875.0,99873.0,0.21635432]
[1746700378910,0.00106399,99875.0,99874.0,0.20025231]
[1746700381830,0.00106399,99875.0,99872.0,0.01001281]
[1746700382033,0.00106399,99875.0,99873.0,0.20025398]
[1746700382671,0.00106399,99875.0,99874.0,0.20025231]
[1746700383236,0.00106399,99875.0,99873.0,0.20025398]
[1746700383659,0.00106399,99875.0,99872.0,0.21026528]
[1746700384105,0.00106399,99875.0,99873.0,0.20025232]
[1746700384784,0.00106399,99875.0,99874.0,0.20025231]
[1746700386181,0.00106399,99875.0,99873.0,0.20025232]
[1746700389078,0.00106399,99875.0,99874.0,0.20025231]
[1746700398996,0.00106399,99875.0,99874.0,5.87505231]
[1746700399629,0.00106399,99875.0,99874.0,6.21505231]
[1746700400123,0.04121021,99898.0,99874.0,6.21505231]
[1746700400124,49.88101488,99888.0,99887.0,0.57132625]
[1746700400333,48.57291344,99888.0,99887.0,0.68653402]
[1746700400532,48.49658585,99888.0,99887.0,11.15521756]
[1746700400731,48.47955011,99888.0,99887.0,11.15521756]
[1746700400960,48.47454252,99888.0,99887.0,11.15521756]
[1746700401436,46.81204616,99888.0,99887.0,11.23146294]
[1746700401667,45.01854245,99888.0,99887.0,11.97914713]
[1746700401898,44.92740691,99888.0,99887.0,11.83146294]
[1746700402126,44.92740691,99888.0,99887.0,8.92014394]
[1746700402375,44.92040691,99888.0,99887.0,8.92414394]
[1746700402597,44.92040691,99888.0,99887.0,8.92714394]
[1746700402820,44.92040691,99888.0,99887.0,8.92414394]
[1746700403041,44.92040691,99888.0,99887.0,8.92714394]
[1746700404645,44.92040691,99888.0,99887.0,7.56938784]
[1746700404871,44.92040691,99888.0,99887.0,7.35101284]
[1746700405558,44.92040691,99888.0,99887.0,7.34701284]
[1746700405759,44.92040691,99888.0,99887.0,7.34401284]
[1746700405995,44.92040691,99888.0,99887.0,7.34501284]
[1746700406217,44.92040691,99888.0,99887.0,7.34601284]
[1746700406923,44.92040691,99888.0,99887.0,6.64601284]
[1746700409420,44.91340691,99888.0,99887.0,6.64601284]
[1746700409616,44.91340691,99888.0,99887.0,0.86869584]
[1746700410027,44.91340691,99888.0,99887.0,10.32719884]
[1746700411019,44.91440691,99888.0,99887.0,10.32719884]
[1746700411426,44.91440691,99888.0,99887.0,8.44009184]
[1746700411926,44.93060691,99888.0,99887.0,8.44009184]
[1746700412592,44.91440691,99888.0,99887.0,8.44009184]
[1746700415010,44.91440691,99888.0,99887.0,8.64031809]
[1746700415291,44.93060691,99888.0,99887.0,8.64031809]
[1746700415494,44.91440691,99888.0,99887.0,8.64031809]
[1746700416332,44.90740691,99888.0,99887.0,8.64031809]
[1746700419495,44.90740691,99888.0,99887.0,8.62163455]
[1746700421362,44.90740691,99888.0,99887.0,8.64024489]
[1746700421806,44.94010691,99888.0,99887.0,8.64024489]
[1746700422008,44.94010691,99888.0,99887.0,7.15218897]
[1746700422212,45.14033116,99888.0,99887.0,0.00934538]
[1746700422616,45.24099808,99888.0,99887.0,0.002]
[1746700422862,45.14033116,99888.0,99887.0,0.002]
[1746700423076,45.24099808,99888.0,99887.0,0.002]
[1746700423490,45.24099808,99888.0,99887.0,0.001]
[1746700423698,0.2313463,99877.0,99876.0,0.00762667]
[1746700424119,0.20025031,99875.0,99867.0,0.01001331]
[1746700424251,0.23115031,99875.0,99868.0,0.01001321]
[1746700424454,0.23115031,99875.0,99867.0,0.01001331]
[1746700425001,0.23115031,99875.0,99868.0,0.01001321]
[1746700425435,0.23115031,99875.0,99853.0,0.06117162]
[1746700425642,0.20029242,99854.0,99853.0,0.06117162]
[1746700425866,0.23119242,99854.0,99853.0,0.06117162]
[1746700426071,0.20029808,99852.0,99850.0,0.002]
[1746700426278,0.0309,99851.0,99850.0,0.002]
[1746700427069,0.0309,99851.0,99850.0,0.00206399]
[1746700427269,0.0309,99851.0,99850.0,3.12500799]
[1746700427637,0.0309,99851.0,99850.0,0.00206399]
[1746700428057,0.13156692,99851.0,99850.0,0.00206399]
[1746700428283,0.13407068,99851.0,99850.0,0.00206399]
[1746700428489,0.01001692,99831.0,99825.0,0.002]
[1746700428770,0.01001662,99834.0,99828.0,0.01001722]
[1746700428771,0.01001682,99832.0,99828.0,0.01001722]
[1746700428971,0.01001672,99833.0,99828.0,0.55036084]
[1746700429184,0.04111692,99831.0,99828.0,0.34]
[1746700429392,0.0311,99831.0,99830.0,0.34]
[1746700431937,0.0311,99831.0,99830.0,0.002]
[1746700432150,0.0311,99831.0,99830.0,0.342]
[1746700432362,0.0311,99831.0,99830.0,0.002]
[1746700432781,0.0311,99831.0,99830.0,0.342]
[1746700433497,0.0241,99831.0,99830.0,0.342]
[1746700434641,0.0241,99831.0,99830.0,0.002]
[1746700436599,0.0241,99831.0,99830.0,0.342]
[1746700438792,0.0157,99831.0,99830.0,0.861257]
[1746700439278,0.01001582,99842.0,99839.0,0.2103378]
[1746700439525,0.20029097,99855.0,99839.0,0.2103378]
[1746700439526,0.00250391,99847.0,99844.0,0.20031248]
[1746700439720,0.21032195,99847.0,99844.0,0.20031248]
[1746700440381,0.20030871,99846.0,99842.0,0.21033121]
[1746700440650,0.21032195,99847.0,99843.0,0.20031424]
[1746700441059,0.20030902,99846.0,99843.0,0.20031424]
[1746700441237,0.005,99845.0,99843.0,0.20031424]
[1746700441429,0.005,99845.0,99844.0,0.20031248]
[1746700441775,0.003,99845.0,99844.0,0.20031248]
[1746700441969,0.003,99845.0,99844.0,5.20031248]
[1746700442182,0.005,99845.0,99844.0,5.20031248]
[1746700442916,0.005,99845.0,99844.0,5.54031248]
[1746700443117,0.004,99845.0,99844.0,10.59031248]
[1746700443303,0.003,99845.0,99844.0,10.59031248]
[1746700443507,0.003,99845.0,99844.0,10.39]
[1746700443718,0.004,99845.0,99844.0,10.6909794]
[1746700443853,0.004,99845.0,99844.0,10.7083794]
[1746700444065,0.002,99845.0,99844.0,10.7073794]
[1746700444270,0.002,99845.0,99844.0,11.1073794]
[1746700444480,0.002,99845.0,99844.0,11.1103794]
[1746700444703,0.002,99845.0,99844.0,11.1260794]
[1746700445101,0.002,99845.0,99844.0,11.8260794]
[1746700445702,0.0164,99872.0,99869.0,0.01001311]
[1746700445901,0.0174,99872.0,99869.0,0.01001311]
[1746700446129,0.02741281,99872.0,99869.0,0.01001311]
[1746700446331,0.02741281,99872.0,99870.0,3.176357]
[1746700446692,0.22766959,99872.0,99870.0,3.176357]
[1746700446921,0.22766944,99872.0,99870.0,3.176357]
[1746700447630,0.22766944,99872.0,99870.0,0.006]
[1746700447926,0.22766944,99872.0,99871.0,3.408822]
[1746700448271,0.22766944,99872.0,99871.0,3.15879296]
[1746700448653,0.24406944,99872.0,99871.0,3.15879296]
[1746700448852,0.24406944,99872.0,99871.0,1.71343]
[1746700449057,0.24406944,99872.0,99871.0,1.470945]
[1746700449257,0.24406944,99872.0,99871.0,1.47855144]
[1746700449679,0.24406944,99872.0,99871.0,1.48455144]
[1746700450001,0.24406944,99872.0,99871.0,1.30189384]
[1746700450125,0.24406944,99872.0,99871.0,1.30518244]
[1746700450791,0.24406944,99872.0,99871.0,0.18293644]
[1746700452893,0.24406944,99872.0,99871.0,0.17533]
[1746700453107,0.24406944,99872.0,99871.0,0.011]
[1746700454558,0.34473636,99872.0,99871.0,0.011]
[1746700455030,0.34473636,99872.0,99871.0,0.01]
[1746700455671,0.34473636,99872.0,99871.0,0.005]
[1746700455897,0.34473636,99872.0,99871.0,0.011]
[1746700456116,0.34473636,99872.0,99871.0,0.006]
[1746700456324,0.34473636,99872.0,99871.0,0.005]
[1746700456938,0.34473636,99872.0,99871.0,0.01]
[1746700457150,0.34473636,99872.0,99871.0,0.005]
[1746700457368,0.34473636,99872.0,99871.0,0.009]
[1746700457583,0.34473636,99872.0,99871.0,0.005]
[1746700457801,0.34473636,99872.0,99850.0,0.002]
[1746700457802,0.20029844,99851.0,99850.0,0.002]
[1746700458016,0.23089844,99851.0,99850.0,0.002]
[1746700458312,0.33156536,99851.0,99850.0,0.002]
[1746700460047,0.33256536,99851.0,99850.0,0.008]
[1746700460452,0.33156536,99851.0,99850.0,0.008]
[1746700460658,0.33156536,99851.0,99850.0,0.014]
[1746700463087,0.33256536,99851.0,99850.0,0.014]
[1746700463713,0.42791264,99851.0,99850.0,0.014]
[1746700463907,0.33256536,99851.0,99850.0,0.014]
[1746700465770,0.35127286,99851.0,99850.0,0.014]
[1746700471381,0.35127039,99851.0,99850.0,0.014]
[1746700475656,0.35127039,99851.0,99850.0,0.014]
[1746700480953,0.36581124,99851.0,99850.0,0.014]
[1746700481154,0.36581124,99851.0,99825.0,0.002]
[1746700481155,0.2003486,99826.0,99825.0,0.002]
[1746700481361,0.35362543,99826.0,99825.0,0.00245696]
[1746700481565,0.35112055,99826.0,99825.0,0.00245696]
[1746700482293,0.35112055,99826.0,99825.0,0.00845696]
[1746700482923,0.35112055,99826.0,99825.0,0.01345696]
[1746700483126,0.41904043,99826.0,99825.0,0.01345696]
[1746700483678,0.35112055,99826.0,99825.0,0.01345696]
[1746700488710,0.25212055,99826.0,99825.0,0.01345696]
[1746700490347,0.21040805,99807.0,99803.0,0.0157]
[1746700490702,0.21040805,99807.0,99805.0,0.0157]
[1746700491023,0.21040805,99807.0,99803.0,0.20039382]
[1746700491439,0.21041114,99805.0,99802.0,0.01001983]
[1746700491640,0.01001933,99807.0,99803.0,0.21041369]
[1746700491641,0.001,99807.0,99803.0,0.21041369]
[1746700491844,0.20138724,99807.0,99804.0,0.20039077]
[1746700492062,0.20138724,99807.0,99803.0,0.01001973]
[1746700492265,0.20038905,99806.0,99803.0,0.01001973]
[1746700492415,0.21040848,99806.0,99803.0,0.01001973]
[1746700492621,0.003,99807.0,99806.0,0.20038875]
[1746700492863,0.01001883,99812.0,99809.0,0.21040058]
[1746700493009,0.01001883,99812.0,99809.0,0.20940058]
[1746700493653,0.01001883,99812.0,99810.0,0.20038047]
[1746700493853,0.21039402,99813.0,99809.0,0.20940058]
[1746700494051,0.31106094,99813.0,99809.0,0.20940058]
[1746700494205,0.31106094,99813.0,99810.0,0.21039891]
[1746700494625,0.21039672,99812.0,99809.0,0.20940058]
[1746700494945,0.21739672,99812.0,99810.0,0.001]
[1746700495977,0.20037884,99811.0,99809.0,0.01001913]
[1746700496175,0.07568936,99810.0,99809.0,0.01001913]
[1746700496391,0.00250488,99810.0,99809.0,0.01001913]
[1746700497164,0.00250488,99810.0,99808.0,0.2003837]
[1746700497406,0.002,99810.0,99808.0,0.2003837]
[1746700498054,0.01872794,99809.0,99808.0,0.2003837]
[1746700499036,0.01872794,99809.0,99807.0,0.21040418]
[1746700499217,0.21911118,99809.0,99807.0,0.01001933]
[1746700499416,0.01872794,99809.0,99807.0,0.01001933]
[1746700499619,0.21540004,99810.0,99807.0,0.21040533]
[1746700499849,0.21140004,99810.0,99807.0,0.21040533]
[1746700500046,0.00250486,99809.0,99807.0,0.21040533]
[1746700500472,0.00550486,99809.0,99807.0,0.21040533]
[1746700500614,0.00250486,99809.0,99807.0,0.21040533]
[1746700500917,0.00650486,99809.0,99807.0,0.21040533]
[1746700501124,0.01873393,99808.0,99807.0,0.21040533]
[1746700501785,0.01873393,99808.0,99807.0,6.97274533]
[1746700502028,0.01873393,99808.0,99807.0,7.31274533]
[1746700502241,0.004,99809.0,99808.0,0.20038473]
[1746700502395,0.004,99809.0,99808.0,10.14362773]
[1746700502605,0.001,99810.0,99809.0,0.20038273]
[1746700502773,0.001,99810.0,99809.0,0.23198273]
[1746700502975,0.001,99810.0,99809.0,10.48432573]
[1746700505116,0.003,99810.0,99809.0,10.48432573]
[1746700505919,0.001,99810.0,99809.0,10.48432573]
[1746700506939,0.01001732,99827.0,99824.0,0.2103694]
[1746700507265,0.01001732,99827.0,99824.0,0.21042422]
[1746700507757,0.21036436,99827.0,99824.0,0.21042422]
[1746700508395,0.21034919,99834.0,99827.0,0.01001732]
[1746700508606,0.2003387,99831.0,99828.0,0.01001722]
[1746700508809,0.01001722,99828.0,99825.0,0.01001753]
[1746700509007,0.01001712,99829.0,99825.0,0.01001753]
[1746700509430,0.20034465,99828.0,99825.0,0.01001753]
[1746700509613,0.21036187,99828.0,99825.0,0.01001753]
[1746700510166,0.20034708,99827.0,99824.0,5.482e-05]
[1746700510368,0.20034708,99827.0,99824.0,0.20040738]
[1746700510748,0.2103644,99827.0,99824.0,0.20040738]
[1746700510899,0.2103644,99827.0,99824.0,5.482e-05]
[1746700511102,0.2103644,99827.0,99824.0,0.20040729]
[1746700511315,0.2103644,99827.0,99824.0,5.482e-05]
[1746700511898,0.01001732,99827.0,99824.0,5.482e-05]
[1746700512380,0.20035061,99825.0,99824.0,5.482e-05]
[1746700513195,0.01001732,99827.0,99824.0,5.482e-05]
[1746700513600,0.20034901,99826.0,99824.0,5.482e-05]
[1746700513808,0.20035061,99825.0,99824.0,5.482e-05]
[1746700515234,0.20034982,99826.0,99824.0,5.482e-05]
[1746700517496,0.20035061,99825.0,99824.0,5.482e-05]
[1746700519352,0.001,99826.0,99824.0,5.482e-05]
[1746700519533,0.20134872,99826.0,99824.0,5.482e-05]
[1746700519918,0.20035061,99825.0,99824.0,5.482e-05]
[1746700520087,0.20134872,99826.0,99824.0,5.482e-05]
[1746700520288,0.20035061,99825.0,99824.0,5.482e-05]
[1746700520489,0.20134984,99826.0,99824.0,5.482e-05]
[1746700520690,0.001,99826.0,99824.0,5.482e-05]
[1746700520975,0.001,99826.0,99825.0,0.34]
[1746700521117,0.001,99826.0,99825.0,6.05888985]
[1746700522131,0.001,99826.0,99825.0,3.40434461]
[1746700522362,0.001,99826.0,99825.0,3.04744461]
[1746700525726,0.001,99826.0,99825.0,5.99334461]
[1746700526126,0.001,99826.0,99825.0,6.04040535]
[1746700526303,0.001,99826.0,99825.0,4.13560535]
[1746700527101,0.001,99826.0,99825.0,4.53560535]
[1746700527302,0.001,99826.0,99825.0,4.13560535]
[1746700527886,0.002,99826.0,99825.0,4.13560535]